bitfinex/quotes_BTCUSD_20250314
["timestamp","ask_amount","ask_price","bid_price","bid_amount"]
[1741940922237,1.83376222,82738.0,82737.0,0.0003384]
[1741940923027,1.83476222,82738.0,82737.0,0.0003384]
[1741940923360,1.87064075,82738.0,82737.0,0.0003384]
[1741940923561,1.65179376,82738.0,82737.0,0.0003384]
[1741940923762,1.58639376,82738.0,82737.0,0.0003384]
[1741940924548,1.45748439,82738.0,82737.0,0.0003384]
[1741940924746,0.79138439,82738.0,82737.0,0.0003384]
[1741940924958,0.79038439,82738.0,82737.0,0.0003384]
[1741940925139,0.65218439,82738.0,82737.0,0.0003384]
[1741940925298,0.79234439,82738.0,82737.0,0.0003384]
[1741940925509,0.91530528,82738.0,82737.0,0.0003384]
[1741940929087,0.79534439,82738.0,82737.0,0.0003384]
[1741940929845,0.65818439,82738.0,82737.0,0.0003384]
[1741940930000,0.79522439,82738.0,82737.0,0.0003384]
[1741940932023,0.61318439,82738.0,82737.0,0.0003384]
[1741940932265,0.75014439,82738.0,82737.0,0.0003384]
[1741940932751,0.87010528,82738.0,82737.0,0.0003384]
[1741940933543,0.73314528,82738.0,82737.0,0.0003384]
[1741940933744,0.87002528,82738.0,82737.0,0.0003384]
[1741940935580,0.61625328,82738.0,82737.0,0.0003384]
[1741940935871,0.87006528,82738.0,82737.0,0.0003384]
[1741940936044,0.57006528,82738.0,82737.0,0.0003384]
[1741940937399,0.64526528,82738.0,82737.0,0.0003384]
[1741940937874,6.42218628,82738.0,82737.0,0.0003384]
[1741940938156,6.72850662,82738.0,82737.0,0.0003384]
[1741940939018,6.73350662,82738.0,82737.0,0.0003384]
[1741940939213,6.78190662,82738.0,82737.0,0.0003384]
[1741940939920,6.81678515,82738.0,82737.0,0.0003384]
[1741940940146,6.81378515,82738.0,82737.0,0.0003384]
[1741940940393,6.81578515,82738.0,82737.0,0.0003384]
[1741940940618,0.01209,82712.0,82711.0,0.01681342]
[1741940940855,0.10096904,82712.0,82711.0,0.043555]
[1741940941136,0.241802,82712.0,82711.0,0.05392611]
[1741940941363,0.253892,82712.0,82711.0,0.05392611]
[1741940942757,0.1368,82713.0,82712.0,0.02674158]
[1741940943234,0.378599,82713.0,82712.0,0.02674158]
[1741940943479,0.1368,82713.0,82712.0,0.02674158]
[1741940943711,0.378599,82713.0,82712.0,0.02674158]
[1741940943954,0.1368,82713.0,82712.0,0.02674158]
[1741940944182,0.1368,82713.0,82711.0,0.26898853]
[1741940944183,0.012086,82735.0,82726.0,0.241761]
[1741940944437,0.3,82727.0,82724.0,0.0758]
[1741940944654,0.541764,82725.0,82724.0,0.0758]
[1741940945096,0.553852,82725.0,82724.0,0.0758]
[1741940945304,0.67381289,82725.0,82724.0,0.0758]
[1741940945668,0.553852,82725.0,82724.0,0.0758]
[1741940946073,0.555852,82725.0,82724.0,0.0758]
[1741940946678,0.556852,82725.0,82724.0,0.0758]
[1741940947377,0.556852,82725.0,82715.0,0.02674158]
[1741940947378,0.241791,82718.0,82715.0,0.02674158]
[1741940947583,0.241791,82716.0,82715.0,0.02674158]
[1741940947951,0.241794,82715.0,82714.0,0.02674158]
[1741940948125,0.253883,82715.0,82714.0,0.02674158]
[1741940949337,0.253886,82714.0,82713.0,0.02674158]
[1741940951146,0.253883,82715.0,82713.0,0.02674158]
[1741940951147,0.3,82716.0,82713.0,0.02674158]
[1741940951440,0.06268941,82715.0,82713.0,0.02674158]
[1741940951753,0.3,82716.0,82715.0,0.253883]
[1741940951967,0.541793,82716.0,82714.0,0.02674158]
[1741940952220,0.241797,82714.0,82713.0,0.02674158]
[1741940952419,0.241797,82714.0,82712.0,0.0003386]
[1741940952420,0.3,82716.0,82714.0,0.26853758]
[1741940952628,0.3,82716.0,82714.0,0.28062658]
[1741940952828,0.3,82716.0,82715.0,0.253883]
[1741940953254,0.3,82716.0,82714.0,0.241796]
[1741940953500,0.253883,82715.0,82714.0,0.02674158]
[1741940957065,0.253888,82713.0,82712.0,0.02708018]
[1741940958677,0.253888,82713.0,82712.0,0.0003386]
[1741940958878,0.253888,82713.0,82712.0,0.02708018]
[1741940959409,0.253888,82713.0,82712.0,0.0003386]
[1741940959636,0.253888,82713.0,82712.0,0.02708018]
[1741940960655,0.253888,82713.0,82712.0,0.0003386]
[1741940960879,0.37384889,82713.0,82712.0,0.02708018]
[1741940962531,0.37384889,82713.0,82712.0,0.0003386]
[1741940962737,0.37384889,82713.0,82712.0,0.02708018]
[1741940963396,0.41802609,82713.0,82712.0,0.0003386]
[1741940963621,0.68645494,82713.0,82712.0,0.0003386]
[1741940964024,0.56843285,82712.0,82711.0,0.00732823]
[1741940964235,0.93219374,82712.0,82711.0,0.00732823]
[1741940964833,0.81223285,82712.0,82711.0,0.00732823]
[1741940965638,0.81623285,82712.0,82711.0,0.00732823]
[1741940965839,0.56767285,82712.0,82711.0,0.00732823]
[1741940966061,0.553132,82712.0,82711.0,0.00732823]
[1741940966288,0.689812,82712.0,82711.0,0.00732823]
[1741940966665,1.65531374,82712.0,82711.0,0.00732823]
[1741940966988,0.82731374,82712.0,82711.0,0.00732823]
[1741940967393,0.70735285,82712.0,82711.0,0.00732823]
[1741940967595,6.48427385,82712.0,82711.0,0.00732823]
[1741940968026,6.1950514,82712.0,82711.0,0.00732823]
[1741940968231,3.7323204,82712.0,82711.0,0.00732823]
[1741940968381,1.4685224,82712.0,82711.0,0.00732823]
[1741940968589,0.95048329,82712.0,82711.0,0.00732823]
[1741940968932,0.5353424,82712.0,82711.0,0.00732823]
[1741940969090,0.6732224,82712.0,82711.0,0.00732823]
[1741940969693,1.5012224,82712.0,82711.0,0.00732823]
[1741940970753,1.076802,82712.0,82711.0,0.00732823]
[1741940971054,1.388892,82712.0,82711.0,0.00732823]
[1741940972444,1.50885289,82712.0,82711.0,0.00732823]
[1741940972821,1.388892,82712.0,82711.0,0.00766683]
[1741940973965,1.135,82712.0,82711.0,0.24947183]
[1741940974184,1.135,82712.0,82711.0,0.00766683]
[1741940974383,1.376802,82712.0,82711.0,0.00766683]
[1741940974707,1.388892,82712.0,82711.0,0.00766683]
[1741940974909,1.50885289,82712.0,82711.0,0.00766683]
[1741940975108,1.52339374,82712.0,82711.0,0.00766683]
[1741940975283,1.51939374,82712.0,82711.0,0.00766683]
[1741940975470,1.52239374,82712.0,82711.0,0.00766683]
[1741940975669,1.51939374,82712.0,82711.0,0.00766683]
[1741940976521,1.52239374,82712.0,82711.0,0.00766683]
[1741940977650,7.29931474,82712.0,82711.0,0.00766683]
[1741940978260,7.49463709,82712.0,82711.0,0.00766683]
[1741940978418,6.66663709,82712.0,82711.0,0.00766683]
[1741940978644,6.41983509,82712.0,82699.0,0.000338]
[1741940978858,0.56846885,82700.0,82699.0,0.000338]
[1741940980279,0.56946885,82700.0,82699.0,0.000338]
[1741940980821,1.39746885,82700.0,82699.0,0.000338]
[1741940981459,1.39946885,82700.0,82699.0,0.000338]
[1741940981658,1.53742885,82700.0,82699.0,0.000338]
[1741940981814,1.65545494,82700.0,82699.0,0.000338]
[1741940982576,7.48327594,82700.0,82699.0,0.000338]
[1741940982780,7.50770389,82700.0,82699.0,0.000338]
[1741940983212,7.50570389,82700.0,82699.0,0.000338]
[1741940983412,0.012093,82689.0,82686.0,0.0003384]
[1741940983619,7.11362485,82689.0,82688.0,0.00038806]
[1741940984306,1.33670385,82689.0,82688.0,0.00038806]
[1741940984502,7.11362485,82689.0,82688.0,0.00038806]
[1741940984707,7.23358574,82689.0,82688.0,0.00038806]
[1741940984922,0.553968,82687.0,82686.0,0.0003384]
[1741940985129,6.34542985,82687.0,82686.0,0.0003384]
[1741940985851,6.42192985,82687.0,82686.0,0.0003384]
[1741940987137,6.42692985,82687.0,82686.0,0.0003384]
[1741940987342,6.42692985,82687.0,82664.0,0.0824]
[1741940987343,0.012096,82668.0,82664.0,0.0824]
[1741940987454,0.254037,82665.0,82664.0,0.0824]
[1741940987661,0.254046,82662.0,82661.0,0.00041255]
[1741940989424,0.241935,82667.0,82666.0,0.02674158]
[1741940989629,0.138,82667.0,82666.0,0.02574158]
[1741940990412,0.39203,82667.0,82666.0,0.02574158]
[1741940990772,0.39303,82667.0,82666.0,0.02574158]
[1741940990985,0.01493768,82667.0,82666.0,0.02574158]
[1741940991213,0.01693768,82667.0,82666.0,0.36007458]
[1741940991857,0.01693768,82667.0,82666.0,0.10604158]
[1741940992453,0.25887168,82667.0,82666.0,0.10604158]
[1741940993466,0.01693768,82667.0,82666.0,0.34797858]
[1741940994101,0.01693768,82667.0,82666.0,0.40687458]
[1741940995655,0.01493768,82667.0,82666.0,0.40687458]
[1741940996078,0.01393768,82667.0,82666.0,0.40787458]
[1741940996537,0.31439736,82675.0,82674.0,0.334209]
[1741940996740,0.01439736,82675.0,82674.0,0.334209]
[1741940997115,0.828,82678.0,82677.0,0.254]
[1741940997305,0.828,82678.0,82677.0,0.3297]
[1741940997514,0.84230906,82678.0,82677.0,0.3297]
[1741940997864,0.828,82678.0,82677.0,0.40524158]
[1741940998139,0.8423817,82678.0,82677.0,0.40424158]
[1741940998473,0.828,82678.0,82677.0,0.40424158]
[1741940998829,0.8423505,82678.0,82677.0,0.40224158]
[1741940999451,0.83,82678.0,82677.0,0.40224158]
[1741940999599,0.828,82678.0,82677.0,0.40324158]
[1741941000260,0.84245445,82678.0,82677.0,0.40224158]
[1741941000451,0.828,82678.0,82677.0,0.40224158]
[1741941000648,0.0003386,82687.0,82686.0,0.27971258]
[1741941000867,0.0003386,82687.0,82686.0,0.40121258]
[1741941002923,0.0003386,82687.0,82686.0,0.40321258]
[1741941004975,0.0001692,82712.0,82711.0,0.36193658]
[1741941005379,0.00029249,82712.0,82711.0,0.10804158]
[1741941005579,0.00029249,82712.0,82711.0,0.34984658]
[1741941005785,0.61981387,82712.0,82711.0,0.36193658]
[1741941005988,0.60529249,82712.0,82711.0,0.36193658]
[1741941007005,0.60629249,82712.0,82711.0,0.36193658]
[1741941007349,0.60729249,82712.0,82711.0,0.36193658]
[1741941007910,0.90979249,82712.0,82711.0,0.36193658]
[1741941008075,0.00229249,82712.0,82711.0,0.40703658]
[1741941008277,0.00229249,82712.0,82711.0,0.381295]
[1741941008476,0.00229249,82712.0,82711.0,0.40703658]
[1741941008934,7.9e-07,82715.0,82714.0,0.40732758]
[1741941009139,7.9e-07,82715.0,82714.0,0.40632758]
[1741941010377,7.9e-07,82715.0,82714.0,0.40832758]
[1741941011412,7.9e-07,82715.0,82714.0,0.70832758]
[1741941012064,7.9e-07,82715.0,82714.0,0.687586]
[1741941012245,7.9e-07,82715.0,82714.0,0.71332758]
[1741941012451,7.9e-07,82715.0,82714.0,0.71832758]
[1741941012983,7.9e-07,82715.0,82714.0,0.71132758]
[1741941013314,7.9e-07,82715.0,82714.0,0.72032758]
[1741941013442,7.9e-07,82715.0,82714.0,0.71732758]
[1741941013646,7.9e-07,82715.0,82714.0,0.74126786]
[1741941014023,7.9e-07,82715.0,82714.0,0.71852628]
[1741941014142,7.9e-07,82715.0,82714.0,0.74426786]
[1741941016284,7.9e-07,82715.0,82714.0,0.7515268]
[1741941016917,7.9e-07,82715.0,82714.0,1.1689268]
[1741941018046,7.9e-07,82715.0,82714.0,1.2189268]
[1741941018647,7.9e-07,82715.0,82714.0,1.2129268]
[1741941019001,7.9e-07,82715.0,82714.0,1.2189268]
[1741941019413,0.0001693,82738.0,82737.0,0.27955658]
[1741941019604,0.00029259,82738.0,82737.0,0.27955658]
[1741941019826,0.00029259,82738.0,82737.0,0.28666199]
[1741941022942,0.00029259,82738.0,82737.0,0.28766199]
[1741941023322,0.00029259,82738.0,82737.0,0.24983441]
[1741941023534,0.00029259,82738.0,82737.0,0.28866199]
[1741941028246,0.00029259,82738.0,82737.0,0.37036199]
[1741941040287,0.00029259,82738.0,82737.0,0.37255788]
[1741941043090,0.00029259,82738.0,82737.0,0.03704288]
[1741941043288,0.25410459,82738.0,82737.0,0.03704288]
[1741941043489,0.25410459,82738.0,82737.0,0.0113013]
[1741941043792,0.00029259,82738.0,82737.0,0.02774158]
[1741941044002,0.00029259,82738.0,82737.0,0.28155658]
[1741941044204,0.00029259,82738.0,82737.0,0.29085889]
[1741941047569,0.00029259,82738.0,82737.0,0.28985889]
[1741941047947,0.00029259,82738.0,82737.0,0.29185889]
[1741941048281,0.00029259,82738.0,82737.0,0.29485889]
[1741941048486,5.9e-07,82738.0,82737.0,0.36995889]
[1741941048661,0.03405311,82768.0,82767.0,0.03782358]
[1741941048867,0.03405311,82768.0,82767.0,0.27946558]
[1741941049072,0.00012326,82768.0,82767.0,0.0350074]
[1741941050235,0.00012326,82768.0,82767.0,0.00926582]
[1741941050442,0.00012326,82768.0,82767.0,0.02574158]
[1741941050655,0.00012326,82768.0,82767.0,0.03534022]
[1741941051721,2.286e-05,82768.0,82767.0,0.03534022]
[1741941052177,2.286e-05,82768.0,82767.0,0.28906422]
[1741941052371,2.286e-05,82768.0,82767.0,0.03534022]
[1741941052600,2.286e-05,82768.0,82767.0,0.28906422]
[1741941053233,2.286e-05,82768.0,82767.0,0.03534022]
[1741941053479,2.286e-05,82768.0,82767.0,0.03734022]
[1741941053680,2.286e-05,82768.0,82767.0,0.03834022]
[1741941054041,2.286e-05,82768.0,82767.0,0.29006422]
[1741941054413,2.286e-05,82768.0,82767.0,0.28906422]
[1741941055023,2.286e-05,82768.0,82767.0,0.36846422]
[1741941056484,0.00019206,82768.0,82767.0,0.36846422]
[1741941056650,0.31454085,82783.0,82777.0,0.253691]
[1741941056829,0.02825836,82783.0,82778.0,0.0095562]
[1741941057032,0.02825836,82783.0,82780.0,0.241602]
[1741941057232,0.26985336,82783.0,82781.0,0.00955271]
[1741941057602,0.01371751,82783.0,82781.0,0.2416]
[1741941057730,0.01371751,82783.0,82779.0,0.27942658]
[1741941057731,0.01371751,82783.0,82782.0,0.00955154]
[1741941057947,0.3,82786.0,82782.0,0.00955154]
[1741941058156,0.241595,82784.0,82781.0,0.02574158]
[1741941058469,0.241598,82782.0,82781.0,0.02574158]
[1741941058652,0.253674,82783.0,82781.0,0.02574158]
[1741941059294,0.253671,82785.0,82781.0,0.02574158]
[1741941059497,0.241598,82782.0,82781.0,0.02574158]
[1741941059703,0.253677,82782.0,82781.0,0.02574158]
[1741941060098,0.253681,82781.0,82780.0,0.02574158]
[1741941060678,0.012082,82767.0,82766.0,0.02574158]
[1741941060886,0.00041079,82781.0,82772.0,0.02574158]
[1741941061094,0.241611,82778.0,82777.0,0.02574158]
[1741941061257,0.253691,82778.0,82777.0,0.02574158]
[1741941061457,0.253697,82776.0,82775.0,0.02574158]
[1741941062511,0.241604,82780.0,82766.0,0.014082]
[1741941062512,0.3,82783.0,82777.0,0.01208]
[1741941062871,0.24201279,82781.0,82777.0,0.01208]
[1741941063147,0.00041079,82781.0,82779.0,0.02574158]
[1741941063358,0.241604,82780.0,82779.0,0.02574158]
[1741941063729,0.241604,82780.0,82779.0,0.02474158]
[1741941064131,0.24201179,82781.0,82779.0,0.02474158]
[1741941064329,0.24201179,82781.0,82571.0,0.0339886]
[1741941064330,0.01208,82777.0,82773.0,0.02474158]
[1741941064537,0.253711,82771.0,82770.0,0.02474158]
[1741941065347,0.253711,82771.0,82770.0,0.03425713]
[1741941065568,0.253711,82771.0,82770.0,0.02474158]
[1741941065707,0.24163,82771.0,82770.0,0.02674158]
[1741941066186,0.24163,82771.0,82770.0,0.03625713]
[1741941066547,0.241628,82772.0,82771.0,0.02474158]
[1741941066910,0.01454085,82774.0,82773.0,0.02474158]
[1741941067110,0.01454085,82774.0,82773.0,0.27844658]
[1741941067368,0.01454085,82774.0,82773.0,0.27587763]
[1741941067519,0.01454085,82774.0,82773.0,0.03425363]
[1741941067722,0.25616185,82774.0,82773.0,0.03425363]
[1741941068065,0.241617,82776.0,82775.0,0.02474158]
[1741941068204,0.253697,82776.0,82775.0,0.02474158]
[1741941068406,0.253697,82776.0,82775.0,0.0342558]
[1741941068867,0.253697,82776.0,82775.0,0.02474158]
[1741941069101,0.253698,82775.0,82774.0,0.02474158]
[1741941069732,0.012078,82793.0,82780.0,0.253684]
[1741941069881,0.13858,82794.0,82780.0,0.253684]
[1741941070086,0.3,82788.0,82780.0,0.26319024]
[1741941070281,0.3,82786.0,82780.0,0.28793182]
[1741941070584,0.25554584,82787.0,82780.0,0.28793182]
[1741941070585,0.02603884,82787.0,82780.0,0.28793182]
[1741941070975,0.24159,82785.0,82780.0,0.28793182]
[1741941071150,0.253668,82786.0,82780.0,0.28793182]
[1741941071291,0.241592,82784.0,82780.0,0.27585182]
[1741941071931,0.253668,82786.0,82780.0,0.28793182]
[1741941072132,0.55554884,82787.0,82780.0,0.28793182]
[1741941072384,0.32603884,82787.0,82780.0,0.28793182]
[1741941072585,0.241589,82786.0,82780.0,0.28793182]
[1741941072734,0.02603884,82787.0,82780.0,0.28793182]
[1741941072937,0.241589,82785.0,82780.0,0.28793182]
[1741941073567,0.241593,82784.0,82780.0,0.28793182]
[1741941073745,0.253672,82784.0,82780.0,0.27585182]
[1741941073918,0.28331185,82781.0,82780.0,0.00950624]
[1741941074118,0.6463527,82781.0,82780.0,0.00950624]
[1741941074324,0.253698,82775.0,82774.0,0.02474158]
[1741941074529,0.26823885,82775.0,82774.0,0.02474158]
[1741941075363,0.26823885,82775.0,82774.0,0.03425371]
[1741941075561,0.26823885,82775.0,82774.0,0.03525371]
[1741941076118,0.26823885,82775.0,82774.0,0.02574158]
[1741941076839,0.26823885,82775.0,82774.0,0.02474158]
[1741941079071,0.253751,82758.0,82757.0,0.0003382]
[1741941079470,0.253751,82758.0,82757.0,0.01467668]
[1741941079696,0.253751,82758.0,82757.0,0.02507978]
[1741941079970,0.253751,82758.0,82757.0,0.01467668]
[1741941080193,0.241666,82759.0,82757.0,0.03941826]
[1741941080329,0.241662,82760.0,82759.0,0.02474158]
[1741941080736,0.241662,82760.0,82759.0,0.03909173]
[1741941081136,0.25620185,82761.0,82760.0,0.02474158]
[1741941081335,0.01454085,82761.0,82760.0,0.02474158]
[1741941081542,0.25619985,82761.0,82760.0,0.02474158]
[1741941081742,0.25619985,82761.0,82760.0,0.03908975]
[1741941082147,0.241631,82771.0,82769.0,0.02474158]
[1741941082373,0.253714,82770.0,82769.0,0.02474158]
[1741941082619,0.253714,82770.0,82761.0,0.241658]
[1741941082620,0.253717,82769.0,82768.0,0.02474158]
[1741941083130,0.26825785,82769.0,82768.0,0.02474158]
[1741941083300,0.01454085,82769.0,82768.0,0.02474158]
[1741941083676,0.25617685,82769.0,82768.0,0.02474158]
[1741941083884,0.26825785,82769.0,82768.0,0.02474158]
[1741941084311,0.26826085,82768.0,82767.0,0.02474158]
[1741941084551,0.26326085,82768.0,82767.0,0.02474158]
[1741941084693,0.26826785,82766.0,82765.0,0.02474158]
[1741941084897,0.26826785,82766.0,82765.0,0.02376302]
[1741941085298,0.01454085,82766.0,82765.0,0.27749302]
[1741941085499,0.01454085,82766.0,82765.0,0.35449302]
[1741941085920,0.01454085,82766.0,82765.0,0.10076302]
[1741941086331,0.26826785,82766.0,82765.0,0.10076302]
[1741941086841,0.26826785,82766.0,82765.0,0.10176302]
[1741941087056,0.26826785,82766.0,82765.0,0.02476302]
[1741941087249,0.26826785,82766.0,82765.0,0.03916651]
[1741941087810,0.26826785,82766.0,82765.0,0.02476302]
[1741941088218,0.26826785,82766.0,82765.0,0.28280913]
[1741941088219,0.01454085,82766.0,82765.0,0.28280913]
[1741941088424,0.02662285,82766.0,82765.0,0.04116113]
[1741941088645,0.25618585,82766.0,82765.0,0.04116113]
[1741941089045,0.25618585,82766.0,82765.0,0.02676302]
[1741941089248,0.26826785,82766.0,82765.0,0.02676302]
[1741941089608,0.26826785,82766.0,82765.0,0.04116294]
[1741941089836,0.01454085,82766.0,82765.0,0.05324494]
[1741941090046,0.01454085,82766.0,82765.0,0.04116294]
[1741941090250,0.01454085,82766.0,82765.0,0.28281094]
[1741941090765,0.01454085,82766.0,82765.0,0.37319294]
[1741941091812,0.26826785,82766.0,82765.0,0.04116294]
[1741941092232,0.26826785,82766.0,82765.0,0.02676302]
[1741941092656,0.25618585,82766.0,82765.0,0.02676302]
[1741941092848,0.33254874,82766.0,82765.0,0.04162713]
[1741941093061,0.34463074,82766.0,82765.0,0.04162713]
[1741941093293,0.26826785,82766.0,82765.0,0.02676302]
[1741941093527,0.01454085,82766.0,82765.0,0.26841102]
[1741941093731,0.01454085,82766.0,82765.0,0.28362451]
[1741941094161,0.01454085,82766.0,82765.0,0.29370651]
[1741941094366,0.3,82774.0,82773.0,0.253705]
[1741941094570,0.25616585,82773.0,82770.0,0.241633]
[1741941094794,0.01454085,82773.0,82769.0,0.03584402]
[1741941095004,0.01454085,82771.0,82769.0,0.02376302]
[1741941095566,0.25617385,82770.0,82769.0,0.02376302]
[1741941095765,0.01454085,82770.0,82769.0,0.02376302]
[1741941096211,0.01454085,82770.0,82769.0,0.26539902]
[1741941097432,0.01454085,82770.0,82769.0,0.26639902]
[1741941097607,0.01454085,82770.0,82769.0,0.02476302]
[1741941098289,0.25617385,82770.0,82769.0,0.02476302]
[1741941098660,0.26825485,82770.0,82769.0,0.02476302]
[1741941099682,0.37240053,82770.0,82769.0,0.02476302]
[1741941101523,0.26825485,82770.0,82769.0,0.02476302]
[1741941102307,0.38855485,82770.0,82769.0,0.001]
[1741941102528,0.68855485,82770.0,82769.0,0.001]
[1741941103156,0.553727,82766.0,82765.0,0.0003382]
[1741941103457,0.56826785,82766.0,82765.0,0.0003382]
[1741941104539,0.7125488,82766.0,82765.0,0.0003382]
[1741941104742,6.4894698,82766.0,82765.0,2e-07]
[1741941104946,1.60006969,82766.0,82765.0,2e-07]
[1741941105148,1.60106969,82766.0,82765.0,2e-07]
[1741941105321,1.60106969,82766.0,82726.0,0.0757]
[1741941105322,0.253846,82727.0,82726.0,0.0757]
[1741941105558,0.012088,82724.0,82719.0,0.0485]
[1741941105674,0.25388,82716.0,82715.0,0.0003384]
[1741941105881,0.26842085,82716.0,82715.0,0.01531427]
[1741941106088,0.28179367,82716.0,82715.0,0.0003384]
[1741941106501,0.58179367,82716.0,82715.0,0.00046166]
[1741941107782,0.58179367,82716.0,82715.0,0.00646166]
[1741941108588,0.32791367,82716.0,82715.0,0.00646166]
[1741941108999,0.58179367,82716.0,82715.0,0.00046166]
[1741941109408,0.58179367,82716.0,82715.0,0.00146166]
[1741941109827,0.58179367,82716.0,82715.0,0.00046166]
[1741941109983,0.58179367,82716.0,82715.0,0.00246166]
[1741941110183,0.58179367,82716.0,82715.0,0.00046166]
[1741941112010,0.67329123,82716.0,82715.0,0.00046166]
[1741941112391,0.58179367,82716.0,82715.0,0.00046166]
[1741941114316,0.58679367,82716.0,82715.0,0.00046166]
[1741941114735,0.58179367,82716.0,82715.0,0.00046166]
[1741941115116,0.58879367,82716.0,82715.0,0.00046166]
[1741941115574,0.58579367,82716.0,82715.0,0.00046166]
[1741941115962,0.58879367,82716.0,82715.0,0.00046166]
[1741941118823,0.70875456,82716.0,82715.0,0.00046166]
[1741941119028,0.58879367,82716.0,82715.0,0.00046166]
[1741941122641,0.58479367,82716.0,82715.0,0.00046166]
[1741941123098,0.90576,82734.0,82724.0,0.02376302]
[1741941123304,0.253852,82725.0,82724.0,0.02376302]
[1741941123529,0.1382,82734.0,82733.0,0.02376302]
[1741941123739,0.01325128,82734.0,82733.0,0.02376302]
[1741941123861,0.241737,82735.0,82734.0,0.02376302]
[1741941124063,0.253823,82735.0,82734.0,0.02376302]
[1741941124406,0.253823,82735.0,82734.0,0.03121507]
[1741941124703,0.26712239,82735.0,82734.0,0.03121507]
[1741941124935,0.26712239,82735.0,82734.0,0.02921507]
[1741941125805,0.26712239,82735.0,82734.0,0.03321507]
[1741941126011,0.3,82742.0,82740.0,0.01976302]
[1741941126361,0.3,82742.0,82734.0,0.02553805]
[1741941126362,0.012083,82755.0,82752.0,0.01976302]
[1741941126633,0.25377,82752.0,82751.0,0.01976302]
[1741941126865,0.26831085,82752.0,82751.0,0.01976302]
[1741941127064,0.26947641,82752.0,82751.0,0.0291596]
[1741941127215,0.25622685,82752.0,82751.0,0.0291596]
[1741941127420,0.768,82776.0,82754.0,0.241676]
[1741941127622,0.241652,82764.0,82756.0,0.03184602]
[1741941127860,0.241669,82758.0,82756.0,0.01976302]
[1741941128058,0.0122521,82757.0,82756.0,0.03142711]
[1741941129278,0.0122521,82757.0,82756.0,0.03342711]
[1741941129548,0.0122521,82757.0,82756.0,0.03542711]
[1741941130628,0.40293396,82757.0,82756.0,0.01566409]
[1741941130828,0.32679295,82757.0,82756.0,0.03542711]
[1741941130946,0.32679295,82757.0,82756.0,0.02376302]
[1741941131156,0.32679295,82757.0,82756.0,0.004]
[1741941131371,0.32679295,82757.0,82751.0,0.00012326]
[1741941131372,0.012084,82752.0,82751.0,0.00012326]
[1741941131571,0.26831085,82752.0,82751.0,0.00012326]
[1741941131975,0.56831085,82752.0,82751.0,0.00012326]
[1741941132753,0.56831085,82752.0,82751.0,0.00112326]
[1741941133175,0.56831085,82752.0,82751.0,0.00212326]
[1741941137378,0.68827174,82752.0,82751.0,0.00212326]
[1741941137495,0.58726317,82752.0,82751.0,0.00212326]
[1741941137899,0.58726317,82752.0,82751.0,0.00112326]
[1741941138334,0.58726317,82752.0,82751.0,0.00012326]
[1741941138783,0.58826317,82752.0,82751.0,0.00012326]
[1741941139544,0.58726317,82752.0,82751.0,0.00012326]
[1741941139837,0.58726317,82752.0,82751.0,0.00112326]
[1741941141303,0.27272232,82752.0,82751.0,0.00012326]
[1741941141502,0.57272232,82752.0,82751.0,0.00012326]
[1741941141723,0.01895232,82752.0,82751.0,0.03156288]
[1741941141880,0.01895232,82752.0,82751.0,0.35345828]
[1741941141881,0.01995232,82752.0,82751.0,0.35345828]
[1741941142085,0.01912152,82752.0,82751.0,0.36513488]
[1741941142284,0.01912152,82752.0,82751.0,0.11136288]
[1741941142608,0.01912152,82752.0,82751.0,0.35305088]
[1741941142804,0.26080752,82752.0,82751.0,0.11136288]
[1741941143011,0.27289152,82752.0,82751.0,0.09159986]
[1741941143219,0.28743237,82752.0,82751.0,0.01179986]
[1741941143424,0.58743237,82752.0,82751.0,0.00012326]
[1741941143621,0.72543237,82752.0,82751.0,0.00012326]
[1741941144034,0.70648005,82752.0,82751.0,0.00012326]
[1741941144185,0.83531578,82752.0,82751.0,2.6e-07]
[1741941144389,0.83531578,82752.0,82710.0,0.0498]
[1741941144390,0.253861,82722.0,82721.0,0.01976302]
[1741941144587,0.26840185,82722.0,82721.0,0.01976302]
[1741941145410,0.26840185,82722.0,82721.0,0.03147109]
[1741941145616,0.02662885,82721.0,82720.0,0.01976302]
[1741941146132,0.03988248,82721.0,82720.0,0.01976302]
[1741941146334,0.03988248,82721.0,82720.0,0.03147255]
[1741941146699,0.02662985,82716.0,82715.0,0.00046169]
[1741941146895,0.26842085,82716.0,82715.0,0.00046169]
[1741941147602,0.26842085,82716.0,82715.0,0.02022471]
[1741941147809,0.26842085,82716.0,82715.0,0.00046169]
[1741941148232,0.56842085,82716.0,82715.0,0.00046169]
[1741941148655,0.58737974,82716.0,82715.0,0.00046169]
[1741941148858,0.58737974,82716.0,82715.0,0.00646169]
[1741941149077,0.70734063,82716.0,82715.0,0.00646169]
[1741941149286,0.70734063,82716.0,82691.0,0.0003382]
[1741941149287,0.26849485,82692.0,82691.0,0.0003382]
[1741941149504,0.56849485,82692.0,82691.0,0.00046149]
[1741941150141,0.5874588,82692.0,82691.0,0.00046149]
[1741941151882,0.5874588,82692.0,82691.0,0.00146149]
[1741941152321,0.5874588,82692.0,82691.0,0.00046149]
[1741941152622,0.71241969,82692.0,82691.0,0.00046149]
[1741941153421,0.72157754,82692.0,82691.0,0.00046149]
[1741941153625,0.58569216,82675.0,82666.0,0.0001693]
[1741941153827,0.72433216,82675.0,82669.0,0.01976302]
[1741941154188,0.72433216,82675.0,82671.0,0.01976302]
[1741941154399,0.72433216,82675.0,82669.0,0.01976302]
[1741941154600,0.72433216,82675.0,82671.0,0.01976302]
[1741941154955,0.72433216,82675.0,82669.0,0.01976302]
[1741941155831,0.72433216,82675.0,82666.0,0.0001693]
[1741941156003,0.72433216,82675.0,82667.0,0.01976302]
[1741941156417,0.72433216,82675.0,82668.0,0.01976302]
[1741941156618,0.72433216,82675.0,82666.0,0.0001693]
[1741941156827,0.74830078,82675.0,82666.0,0.0001693]
[1741941157030,0.74830078,82675.0,82674.0,0.0002373]
[1741941157408,0.76160264,82675.0,82674.0,0.0002373]
[1741941159036,0.76160264,82675.0,82674.0,0.00013652]
[1741941159262,0.74445733,82675.0,82674.0,0.00013652]
[1741941159643,0.74645733,82675.0,82674.0,0.00013652]
[1741941160020,0.86641822,82675.0,82674.0,0.00013652]
[1741941160666,0.86941822,82675.0,82674.0,0.00013652]
[1741941161793,0.012096,82667.0,82666.0,3e-07]
[1741941161960,0.012096,82667.0,82654.0,0.0003384]
[1741941161961,0.554067,82655.0,82654.0,0.0003384]
[1741941162169,0.78926965,82655.0,82654.0,0.00075095]
[1741941162401,0.70724785,82655.0,82654.0,0.00075095]
[1741941163374,0.71024785,82655.0,82654.0,0.00075095]
[1741941165367,0.71954743,82655.0,82654.0,0.00075095]
[1741941165631,0.75971869,82655.0,82654.0,0.00075095]
[1741941165835,0.87967958,82655.0,82654.0,0.00075095]
[1741941166039,0.84250832,82655.0,82654.0,0.00075095]
[1741941166417,0.87967958,82655.0,82654.0,0.00075095]